[Event "Israeli Team-ch 2023"]
[Site "Petah Tikva"]
[Date "2023.05.05"]
[Round "9.12"]
[White "Kogan, Arthur"]
[Black "Aharonovich, Itamar"]
[Result "1/2-1/2"]
[ECO "B47"]
[WhiteElo "2471"]
[BlackElo "2327"]
[Annotator "TA"]
[PlyCount "187"]
[EventDate "2023.01.13"]
[EventCountry "ISR"]
[SourceTitle "playchess.com"]
[Source "ChessBase"]
[SourceQuality "1"]
[TimeControl "40/5400+30:1800+30"]

{[%evp 11,186,26,34,21,21,12,10,-10,11,-14,-12,-13,-12,-15,-14,-42,-38,-41,-38,-44,-43,-42,-29,-92,-52,-68,-54,-53,-20,-18,-14,-13,-13,-20,-11,-11,-16,-20,-8,-14,-14,-18,27,21,44,40,44,43,57,46,93,37,118,12,15,0,0,0,29,11,16,15,47,20,21,14,15,14,14,14,14,14,14,0,0,0,3,0,0,0,0,0,0,0,0,0,1,0,0,0,0,0,8,0,0,0,8,8,8,8,8,8,13,0,0,0,0,0,0,0,0,0,0,0,8,29,956,777,745,633,2438,29,43,43,5674,5604,5827,5698,5620,5488,5506,5481,5289,5171,5481,0,0,0,0,0,0,0,8,8,8,8,8,8,8,8,8,8,8,8,8,0,8,8,8,8,8,0,0,0,0,0,0,0,0,0,0,0,0,0,0,0,0]} 1. e4 {[%emt 0:00:08]} c5 {[%emt 0:04:04]} 2. Nf3 {[%emt 0:00:34]} e6 {[%emt 0:00:43]} 3. Nc3 {[%emt 0:00:57]} Nc6 {[%emt 0:02:08]} 4. d4 {[%emt 0:00:42]} cxd4 {[%emt 0:00:09]} 5. Nxd4 {[%emt 0:00:03]} Qc7 {[%emt 0:01:01]} 6. Be2 {[%emt 0:00:30]} a6 {Black is weak on the light squares} 7. Nxc6 {[%emt 0:00:46] B47: Sicilian: Taimanov: 5 Nc3 Qc7 6 f4, 6 g3 and 6 Be2.} bxc6 {[%emt 0:05:33]} 8. Qd3 {[%emt 0:01:01]} d5 {[%emt 0:04:16]} 9. O-O {[%emt 0:05:45]} Nf6 {[%emt 0:02:42]} 10. f4 {[%emt 0:02:17]} Be7 {[%emt 0:00:07]} 11. e5 {[%emt 0:03:26]} Nd7 {[%emt 0:00:24]} 12. Qg3 {[%emt 0:00:34]} O-O {[%emt 0:00:54] [#]} 13. Nd1 $146 {[%emt 0:08:17]} ({Predecessor:} 13. Qh3 Nc5 14. Be3 Rb8 15. Kh1 Qa5 16. Rab1 Rd8 17. Bd2 Qc7 18. b4 Nd7 19. Bd3 {0-1 Fridh,A-Kinnmark,O SWE-ch52 Norrkoeping 1968 (2)}) 13... f6 {[%emt 0:12:48]} 14. exf6 {[%emt 0:03:27]} Nxf6 {[%emt 0:05:18][%cal Oe6e5]} 15. Nf2 {[%emt 0:03:53]} Bd6 {[%emt 0:00:11]} 16. Qh4 {[%emt 0:11:20]} Bd7 {[%emt 0:08:30]} 17. c4 {[%emt 0:55:20]} (17. Rb1 $11 {keeps the balance.}) 17... Rae8 {[%emt 0:05:22]} 18. Bd3 {[%emt 0:00:00]} e5 {[%emt 0:09:54]} 19. fxe5 {[%emt 0:00:00]} Rxe5 {[%emt 0:00:15] Hoping for ...Rh5.} 20. Bf4 $1 {[%emt 0:01:30]} Rh5 {[%emt 0:00:37][%mdl 64] Discovered Attack} 21. Bxd6 {[%emt 0:00:00]} Qxd6 {[%emt 0:00:08]} 22. Qg3 {[%emt 0:00:00]} Qxg3 {[%emt 0:04:20]} (22... Qc5 {feels hotter.} 23. cxd5 cxd5 24. Rac1 Qd4) 23. hxg3 {[%emt 0:00:00]} a5 {[%emt 0:01:34]} 24. Rac1 {[%emt 0:00:00]} Rg5 {[%emt 0:06:20]} 25. cxd5 {[%emt 0:00:00]} cxd5 {[%emt 0:00:18]} (25... Rxg3 $2 26. dxc6 Bc8 27. Bc4+ Kh8 28. Rce1 $18) 26. Rc5 {[%emt 0:00:00]} a4 {[%emt 0:00:48] [#]} (26... Rxg3 $5 {[%cal Ra5a4]} 27. Rxa5 h5 $11) 27. Ne4 $1 {[%emt 0:00:00]} Nxe4 {[%emt 0:01:01]} (27... dxe4 $2 28. Bc4+ (28. Rxg5 $2 {perishes.} exd3 29. Rd1 Rb8 $19) 28... Kh8 29. Rxg5 $18) (27... Rg4 28. Nxf6+) 28. Bxe4 {[%emt 0:00:00]} Rxf1+ {[%emt 0:00:51]} (28... Rxg3 $2 29. Bxd5+ $18 (29. Rxd5 Rxf1+ 30. Kxf1 Be8 $14) (29. Rxd5 Rxf1+ 30. Kxf1 Be8 $14)) 29. Kxf1 {[%emt 0:00:00]} Rxg3 {[%emt 0:02:11]} 30. Rxd5 $11 {[%emt 0:00:00][%mdl 4096] Endgame KRB-KRB} Be6 {[%emt 0:00:29]} (30... Be8 $14 {deserves consideration.}) 31. Ra5 {[%emt 0:00:14]} ({White should play} 31. Kf2 $1 $16 Rg4 32. Kf3) 31... Bxa2 {[%emt 0:06:31]} (31... Bd7 $1 $14) 32. Rxa4 {[%emt 0:00:15]} ({Better is} 32. Kf2 $1 $16 {[%cal Rf2g3]} Rg4 33. Kf3 Rxe4 34. Kxe4) 32... Be6 {[%emt 0:00:40]} 33. Ra8+ {[%emt 0:01:24]} Kf7 {[%emt 0:00:10]} 34. Bxh7 {[%emt 0:00:38]} Kf6 {[%emt 0:02:50]} (34... Bc4+ $5 35. Kf2 Rxg2+ {[%mdl 64] Decoy} 36. Kxg2 Bd5+ 37. Kg3 Bxa8 $11) 35. Rf8+ {[%emt 0:02:11]} (35. Ra6 $5 {[%cal Rh7g8]} Ke5 36. Kf2 $14) 35... Ke7 {[%emt 0:02:31]} 36. Rf3 {[%emt 0:00:37]} Rg4 {[%emt 0:05:33]} 37. Re3 {[%emt 0:00:54] Threatens to win with Bg8.} Kd6 {[%emt 0:07:49]} 38. Be4 {[%emt 0:00:55]} Rg5 {[%emt 0:00:00]} 39. Bd3 {[%emt 0:01:35]} Bd5 {[%emt 0:00:00]} 40. g3 {[%emt 0:00:15]} Kc5 {[%emt 0:00:00]} 41. Be2 {[%emt 0:30:56]} Rg6 {[%emt 0:01:42]} 42. Rc3+ {[%emt 0:00:00]} Kd4 {[%emt 0:00:43]} 43. Rd3+ {[%emt 0:00:00]} Ke5 {[%emt 0:02:34]} 44. Kf2 {[%emt 0:00:00]} Rb6 {[%emt 0:03:23]} 45. Rd2 {[%emt 0:00:00]} Be4 {[%emt 0:02:19]} 46. Bd1 {[%emt 0:00:00]} Rf6+ {[%emt 0:02:51]} 47. Ke3 {[%emt 0:00:00]} Rg6 {[%emt 0:00:35]} 48. g4 {[%emt 0:00:00]} Rh6 {[%emt 0:01:20]} 49. Rf2 {[%emt 0:00:00]} Rh3+ {[%emt 0:01:45]} 50. Kd2 {[%emt 0:00:00]} Rd3+ {[%emt 0:05:07]} 51. Kc1 {[%emt 0:00:00]} Rh3 {[%emt 0:02:07]} 52. b3 {[%emt 0:00:00]} Kd4 {[%emt 0:01:34]} 53. Kb2 {[%emt 0:03:15]} Rg3 {[%emt 0:00:37]} 54. Rd2+ {[%emt 0:00:59]} Kc5 {[%emt 0:01:31]} 55. b4+ {[%emt 0:00:46]} Kb5 {[%emt 0:02:57]} 56. Be2+ {[%emt 0:00:33]} Ka4 {[%emt 0:00:24]} 57. Bd1+ {[%emt 0:00:32]} Kb5 $1 {[%emt 0:00:06]} 58. Rd4 {[%emt 0:00:29]} Bf3 {[%emt 0:00:31] Wards off Be2+} 59. Bxf3 {[%emt 0:01:00]} Rxf3 {[%emt 0:00:02] KR-KR} 60. Kc2 {[%emt 0:00:16]} Rg3 {[%emt 0:01:10]} 61. Kd2 {[%emt 0:00:27]} g5 {[%emt 0:01:47]} 62. Ke2 {[%emt 0:00:42]} Ka4 {[%emt 0:00:29]} 63. Kf2 {[%emt 0:00:39]} Rc3 $2 {[%emt 0:01:09][%mdl 8192]} (63... Rb3 $11) 64. Kg2 $1 $18 {[%emt 0:01:24]} Kb5 {[%emt 0:00:48]} 65. Re4 {[%emt 0:00:46]} Ka4 {[%emt 0:01:05]} 66. Kf2 $2 {[%emt 0:00:10]} (66. Re5 $18 Kxb4 67. Rxg5) 66... Rb3 $1 $11 {[%emt 0:03:06]} 67. Rc4 {[%emt 0:01:01] Kg2 would be deadly.} Rd3 $2 {[%emt 0:00:19][%mdl 8192]} (67... Kb5 $14 68. Rc7 Ra3) 68. Rc5 $1 $18 {[%emt 0:00:29]} Kxb4 {[%emt 0:00:14]} 69. Rxg5 {[%emt 0:00:03]} Kc4 {[%emt 0:00:14]} 70. Rg8 $1 {[%emt 0:00:12]} Rb3 {[%emt 0:00:51] [#]} 71. Rd8 $1 {[%emt 0:00:49]} Ra3 {[%emt 0:00:13]} 72. g5 {[%emt 0:01:02]} Ra5 {[%emt 0:00:24] [#]} 73. Rg8 $2 {[%emt 0:00:11]} (73. g6 $1 $18 {[%cal Rg6g7] g7 would kill now.} Rg5 74. Rd6) 73... Kd5 $1 $11 {[%emt 0:01:23] The position is equal.} 74. Kg3 {[%emt 0:00:43]} Ke6 $1 {[%emt 0:00:49]} 75. Kg4 {[%emt 0:00:31] Rf8 is the strong threat.} Kf7 {[%emt 0:00:13] Wards off Rf8+} 76. Rb8 {[%emt 0:00:09]} Ra6 {[%emt 0:00:30]} 77. Kh5 {[%emt 0:00:14]} Kg7 {[%emt 0:00:24]} 78. Rb7+ {[%emt 0:00:08]} Kg8 {[%emt 0:00:18]} 79. Re7 {[%emt 0:00:32]} Rb6 {[%emt 0:00:09]} 80. Rc7 {[%emt 0:00:32]} Ra6 {[%emt 0:00:06]} 81. Rc5 {[%emt 0:00:08]} Kh7 {[%emt 0:00:37]} 82. Re5 {[%emt 0:00:33]} Rb6 {[%emt 0:00:14]} 83. Re7+ {[%emt 0:00:05]} Kg8 {[%emt 0:00:15]} 84. Kg4 {[%emt 0:00:04]} Rb4+ {[%emt 0:00:20]} 85. Kf5 {[%emt 0:00:11]} Rb5+ {[%emt 0:00:10]} 86. Kf6 {[%emt 0:00:20] White threatens Re8+ and mate.} Rb6+ {[%emt 0:00:50]} 87. Re6 {[%emt 0:00:27]} Rxe6+ {[%emt 0:00:05]} 88. Kxe6 {[%emt 0:00:02] White wants to mate with Kf6. KP-K} Kg7 {[%emt 0:00:05]} 89. Kf5 {[%emt 0:00:01]} Kf7 {[%emt 0:00:07]} 90. g6+ {[%emt 0:00:02]} Kg7 {[%emt 0:00:06]} 91. Kg5 {[%emt 0:00:02]} Kg8 {[%emt 0:00:08]} 92. Kf6 {[%emt 0:00:03] Threatening mate with g7.} Kf8 {[%emt 0:00:06]} 93. g7+ {[%emt 0:00:02]} Kg8 {[%emt 0:00:05]} 94. Kg6 {[%emt 0:00:02] White really could win this.   Weighted Error Value: White=0.10 (very precise) /Black=0.09 (flawless)} 1/2-1/2

[Event "Israeli Team-ch 2023"]
[Site "Petah Tikva"]
[Date "2023.05.05"]
[Round "9.13"]
[White "Mesropov, Konstantin"]
[Black "Kupervaser, Erez"]
[Result "1/2-1/2"]
[ECO "A36"]
[WhiteElo "2437"]
[BlackElo "2293"]
[Annotator "TA"]
[PlyCount "74"]
[EventDate "2023.01.13"]
[EventCountry "ISR"]
[SourceTitle "playchess.com"]
[Source "ChessBase"]
[SourceQuality "1"]
[TimeControl "40/5400+30:1800+30"]

{[%evp 11,74,0,0,4,0,0,-3,-4,0,0,3,-6,-5,-8,0,-11,0,-24,-21,-39,-25,-52,-50,-72,-45,-60,-53,-60,-35,-39,-30,-48,-12,-12,-38,-42,-41,-53,-41,-41,0,0,43,46,245,52,33,23,52,51,54,47,45,11,23,0,0,0,0,-16,0,0,0,-17,0]} 1. c4 {[%emt 0:00:08]} Nf6 {[%emt 0:00:47]} 2. g3 g6 {[%emt 0:01:11]} 3. Bg2 {[%emt 0:00:56]} Bg7 {[%emt 0:00:08]} 4. Nc3 {[%emt 0:00:15]} c5 {[%emt 0:00:27]} 5. d3 {[%emt 0:05:38]} O-O {[%emt 1:30:27]} 6. Nh3 Nc6 7. Nf4 {A36: Symmetrical English vs ...g6: 4 Bg2 Bg7.} d6 8. a3 {[#]} Qd7 $146 ({Predecessor:} 8... Rb8 9. Rb1 a5 10. Bd2 Bd7 11. h4 h5 12. O-O b6 13. Nb5 Ne5 14. Bc3 Nfg4 {1-0 Glud,J (2528)-Lie,E (2449) Oslo Sveins op 7th 2014 (7)}) 9. Rb1 b6 10. O-O Bb7 11. Qa4 Rfd8 12. Bd2 e6 {[%emt 0:00:00][%cal Od6d5]} 13. h4 {[%emt 0:06:59]} Qc8 {[%emt 0:00:00]} 14. b4 {[%emt 0:32:18]} Nd4 {[%emt 0:00:00]} 15. Rfe1 {[%emt 0:04:36]} Bxg2 (15... Ng4 {with more complications.} 16. Ne4 Nf5 17. bxc5 dxc5 18. h5 Nf6) 16. Nxg2 {[%emt 0:05:22]} h6 {[%emt 0:00:00]} 17. Qd1 {[%emt 0:02:04]} Qb7 {[%emt 0:00:00]} 18. a4 {[%emt 0:03:27]} cxb4 19. Rxb4 {[%emt 0:00:47]} Rac8 {[%emt 0:00:00]} 20. Nb5 {[%emt 0:05:48]} Nc6 {[%emt 0:00:00]} 21. Rb1 {[%emt 0:00:17][%cal Oa4a5]} Qe7 {[%emt 0:00:00]} 22. e4 {[%emt 0:05:19]} Nd7 {[%emt 0:00:00]} 23. Bc3 {[%emt 0:17:13]} Bxc3 24. Nxc3 {[%emt 0:00:07]} Qf6 $1 {[%emt 0:00:00]} 25. Nb5 {[%emt 0:03:22]} Nd4 {[%emt 0:00:00] [#] And now ...Nf3+ would win.} (25... a6 $5 {[%cal Ra6b5]} 26. Na3 (26. Nxd6 $2 {too greedy.} Rb8 $19) 26... Nc5 $17) 26. Re3 {[%emt 0:02:56] Prevents Nf3+} Nxb5 {[%emt 0:04:31]} (26... a6 $5 {[%cal Ra6b5]} 27. Nxd4 Qxd4 $11) 27. axb5 {[%emt 0:00:02]} d5 $2 {[%emt 0:00:38]} 28. cxd5 $2 {[%emt 0:00:44]} (28. exd5 $18 Nc5 29. d4 exd5 30. dxc5 dxc4 31. Qe1) 28... exd5 $14 {[%emt 0:00:01]} 29. Nf4 {[%emt 0:00:17]} dxe4 {[%emt 0:00:41]} 30. dxe4 {[%emt 0:00:34]} ({Much weaker is} 30. Nd5 Qd6 31. dxe4 Nf6 $11) 30... Ne5 {[%emt 0:01:25]} 31. Nd5 {[%emt 0:00:14]} Qe6 {[%emt 0:00:34]} 32. Qe2 {[%emt 0:02:40]} Rc5 {[%emt 0:02:43]} 33. Rd1 {[%emt 0:02:22]} Rdc8 {[%emt 0:00:38] The position is equal.} 34. Nf4 {[%emt 0:01:09]} Qg4 {[%emt 0:02:01]} 35. Nd5 {[%emt 0:00:53]} Qe6 {[%emt 0:00:05] Inhibits Nf6+.} 36. Nf4 {[%emt 0:00:25]} Qg4 {[%emt 0:00:39]} 37. Nd5 {[%emt 0:00:19] [#] Nf6+ would be deadly.} Qe6 {[%emt 0:01:30] Prevents Nf6+.   Weighted Error Value: White=0.18 (very precise) /Black=0.17 (very precise)} 1/2-1/2

[Event "Israeli Team-ch 2023"]
[Site "Petah Tikva"]
[Date "2023.05.05"]
[Round "9.14"]
[White "Shohat, Yotam"]
[Black "Soffer, Ram"]
[Result "1-0"]
[ECO "D27"]
[WhiteElo "2284"]
[BlackElo "2475"]
[Annotator "TA"]
[PlyCount "59"]
[EventDate "2023.01.13"]
[EventCountry "ISR"]
[SourceTitle "playchess.com"]
[Source "ChessBase"]
[SourceQuality "1"]
[TimeControl "40/5400+30:1800+30"]

{[%evp 26,59,0,0,120,111,149,151,156,152,151,146,326,327,317,327,317,315,313,296,535,533,537,533,606,603,593,595,585,586,626,622,611,594,676,679]} 1. e4 {[%emt 0:00:13]} c6 {[%emt 1:31:00]} 2. c4 {[%emt 0:00:17]} d5 {[%emt 0:00:00]} 3. cxd5 {[%emt 0:00:03]} cxd5 {[%emt 0:00:00]} 4. exd5 {[%emt 0:00:04]} Nf6 {[%emt 0:00:00]} 5. Nc3 {[%emt 0:00:07]} Nxd5 {[%emt 0:00:00]} 6. Nf3 {[%emt 0:00:09]} Nc6 {[%emt 0:00:00]} 7. Bb5 {[%emt 0:02:07]} e6 {[%emt 0:00:00]} 8. O-O {[%emt 0:02:50]} Be7 {[%emt 0:00:00]} 9. d4 {[%emt 0:00:31]} O-O {[%emt 0:00:00]} 10. Re1 {[%emt 0:00:43]} Nf6 {[%emt 0:00:00]} 11. a3 {[%emt 0:01:58]} a6 {[%emt 0:00:00]} 12. Bd3 {[%emt 0:03:07]} b5 {[%emt 0:00:00]} 13. Bc2 {[%emt 0:02:04]} Bb7 {[%emt 0:00:00]} 14. Qd3 {[%emt 0:00:06][%cal Od4d5]} Rc8 {[%emt 0:00:00] [#] D27: Queen's Gambit Accepted: Classical main line: 7 e4!? and 7 a4.} (14... g6 $11) 15. d5 $1 $16 {[%emt 0:01:37][%mdl 512]} exd5 {[%emt 0:00:00]} (15... Na5 16. Bg5) 16. Bg5 {[%emt 0:01:57] White has more active pieces.} Ne4 {[%emt 0:00:00] White is clearly better.} 17. Nxe4 {[%emt 0:00:15]} (17. Nxd5 Bxg5 18. Qxe4 g6 $16) 17... dxe4 {[%emt 0:00:00]} 18. Qxe4 $40 {[%emt 0:00:06][%csl Gc2][%cal Re4h7][%mdl 128] White has strong attack.} f5 $2 {[%emt 0:00:00] [#]} (18... g6 $16 {might work better.} 19. Bh6 (19. Bxe7 Qxe7 20. Qf4 Qc7 $14) 19... Bf6) 19. Qe6+ $1 $18 {[%emt 0:19:27]} (19. Bxe7 fxe4 20. Bb3+ Kh8 21. Bxd8 exf3 $14) 19... Kh8 {[%emt 0:00:00]} 20. Rad1 {[%emt 0:01:00]} (20. Bxe7 Nxe7 21. Qxe7 Qxe7 22. Rxe7 Bxf3 $14) 20... Qe8 {[%emt 0:00:00]} 21. Bxf5 {[%emt 0:05:32][%cal Bc2f5,Bf5e6,Be6d5][%mdl 32]} ({Weaker is} 21. Bxe7 Nxe7 22. Nd4 (22. Qxe7 Qxe7 23. Rxe7 Bxf3 $14) 22... Nd5 $16) 21... Bxg5 {[%emt 0:00:00]} 22. Nxg5 {[%emt 0:01:20] [#]} Qxe6 $146 {[%emt 0:00:00]} (22... Rb8 {keeps fighting.} 23. Bxh7 (23. Nxh7 Qxe6 {[%mdl 64] Deflection} 24. Bxe6 Kxh7 $17) 23... Qxe6 24. Rxe6 Rbd8 25. Rxd8 Nxd8) ({Predecessor:} 22... Qh5 23. Nf7+ {1-0 Miranda,M (2295)-Loureiro,L (2340) Olicio Gadia Memorial 1997 (1)}) 23. Bxe6 {[%emt 0:00:36] White is clearly winning.} Rc7 {[%emt 0:00:00] [#]} 24. Nf7+ {[%emt 0:02:49][%mdl 512]} Kg8 {[%emt 0:00:00]} (24... Rfxf7 25. Bxf7) 25. Nd8+ {[%emt 0:00:52]} Kh8 {[%emt 0:00:00]} 26. Nxb7 {[%emt 0:00:12]} Rxb7 {[%emt 0:00:00]} 27. Bd5 {[%emt 0:00:05]} Rb6 {[%emt 0:00:00]} 28. Re6 {[%emt 0:00:15]} Rd8 {[%emt 0:00:00] [#]} 29. Rde1 $1 {[%emt 0:00:02] White wants to mate with Re8+.} Rbb8 {[%emt 0:00:00]} (29... g6 30. Bxc6) 30. Bxc6 {[%emt 0:00:11] White took control after the opening.   Weighted Error Value: White=0.01 (flawless) /Black=0.72} 1-0

[Event "Israeli Team-ch 2023"]
[Site "Petah Tikva"]
[Date "2023.05.05"]
[Round "9.15"]
[White "Ben Ari, Yannay"]
[Black "Aharon, Ofir"]
[Result "1-0"]
[ECO "A40"]
[WhiteElo "2406"]
[BlackElo "2256"]
[Annotator "TA"]
[PlyCount "71"]
[EventDate "2023.01.13"]
[EventCountry "ISR"]
[SourceTitle "playchess.com"]
[Source "ChessBase"]
[SourceQuality "1"]
[TimeControl "40/5400+30:1800+30"]

{[%evp 9,71,25,74,56,54,43,112,113,113,113,118,108,111,112,112,116,110,112,111,114,123,106,119,116,134,93,120,110,126,112,147,114,121,121,174,181,247,242,293,220,226,221,259,245,460,457,488,500,472,429,506,469,522,524,515,516,701,695,758,679,676,670,733,724]} 1. Nf3 {[%emt 0:04:21]} c5 {[%emt 0:00:11]} 2. e3 {[%emt 0:01:51]} g6 {[%emt 0:01:16]} 3. d4 {[%emt 0:00:27]} Bg7 {[%emt 0:00:04]} 4. dxc5 {[%emt 0:06:31]} Nf6 {[%emt 0:01:25]} 5. a3 {[%emt 0:01:05]} a5 {[%emt 0:02:41]} (5... O-O $11) 6. Nc3 $16 {[%emt 0:01:13][%cal Bb1c3,Bc3a4,Ba4b6][%mdl 32] [#] White is more active. A40: Unusual replies to 1 d4.} O-O $146 {[%emt 0:04:33]} ({Predecessor:} 6... Na6 7. e4 Nxc5 8. e5 Ng4 9. Bf4 Ne6 10. Bg3 Nh6 11. Bd3 Nc5 12. Bc4 O-O {0-1 Khismatullin,D (2679)-Ponkratov,P (2624) RUS Cup final 2014 (2.4)}) 7. Na4 {[%emt 0:17:36]} Qc7 {[%emt 0:02:18] [#] Black is on the road to losing.} ({Black should try} 7... Na6 $14) 8. Nd4 $1 {[%emt 0:09:45] White is better.} Na6 {[%emt 0:06:19] [#]} 9. Nb5 $1 {[%emt 0:06:41]} ({But not} 9. Nb6 $6 Rb8 $11) 9... Qe5 {[%emt 0:06:13]} 10. Nb6 {[%emt 0:05:52]} Rb8 {[%emt 0:03:08]} 11. Na7 {[%emt 0:00:39]} Nxc5 {[%emt 0:02:05]} 12. Be2 {[%emt 0:02:12]} d5 {[%emt 0:09:10]} 13. Naxc8 {[%emt 0:00:36]} Rbxc8 {[%emt 0:02:18]} 14. Nxc8 {[%emt 0:00:02]} Rxc8 {[%emt 0:00:01]} 15. O-O {[%emt 0:00:44]} Nfe4 {[%emt 0:02:32]} 16. Rb1 {[%emt 0:05:33]} e6 {[%emt 0:03:52]} 17. Bd2 {[%emt 0:04:52][%cal Bc1d2,Bd2e1,Be1f2][%mdl 32]} Na4 {[%emt 0:07:59]} 18. c3 {[%emt 0:01:14]} Nb6 {[%emt 0:01:00]} 19. Be1 {[%emt 0:03:06]} Nc4 {[%emt 0:01:43]} 20. a4 {[%emt 0:01:04]} b6 {[%emt 0:03:38]} 21. Bd3 {[%emt 0:03:45]} f5 {[%emt 0:03:00]} (21... Qc7 $16 {is a better defense.}) 22. Qe2 $18 {[%emt 0:00:14]} Rc6 {[%emt 0:03:33]} (22... Bh6 $142 23. Kh1 Ncd6) 23. f3 {[%emt 0:06:13]} Nf6 {[%emt 0:03:09]} 24. Bf2 {[%emt 0:01:19]} Qc7 {[%emt 0:00:46]} 25. Rbd1 {[%emt 0:04:37]} Bh6 {[%emt 0:06:54]} 26. Kh1 {[%emt 0:04:52] Threatens to win with e4.} Qb7 $2 {[%emt 0:05:42]} (26... Ne5 27. Bb5 Rd6) 27. e4 {[%emt 0:01:41] White is clearly winning.} Qf7 {[%emt 0:05:35]} 28. exd5 {[%emt 0:00:38]} exd5 {[%emt 0:00:02]} 29. Rfe1 {[%emt 0:00:03]} Bg7 {[%emt 0:03:03]} 30. Bd4 {[%emt 0:02:44]} h5 {[%emt 0:02:07]} 31. b3 {[%emt 0:00:27]} Nd6 {[%emt 0:00:17]} 32. Qe6 {[%emt 0:03:34]} Nfe8 {[%emt 0:04:31]} 33. Bb5 {[%emt 0:00:24]} Rc8 {[%emt 0:01:16]} 34. Bxe8 {[%emt 0:00:29][%mdl 64] Pin} Qxe6 {[%emt 0:00:16]} 35. Rxe6 {[%emt 0:00:02]} Bxd4 {[%emt 0:00:37]} 36. Rxd6 {[%emt 0:01:00] Weighted Error Value: White=0.12 (very precise) /Black=0.36} 1-0

[Event "Israeli Team-ch 2023"]
[Site "Petah Tikva"]
[Date "2023.05.05"]
[Round "9.16"]
[White "Iakymov, Volodymyr"]
[Black "Bakalchuk, Johnatan"]
[Result "0-1"]
[ECO "B27"]
[WhiteElo "2378"]
[BlackElo "2442"]
[Annotator "TA"]
[PlyCount "50"]
[EventDate "2023.01.13"]
[EventCountry "ISR"]
[SourceTitle "playchess.com"]
[Source "ChessBase"]
[SourceQuality "1"]
[TimeControl "40/5400+30:1800+30"]

{[%evp 9,50,5,15,0,-14,0,-8,-10,0,-1,-7,-14,-14,-17,-9,-20,-4,-43,-25,-53,-25,-36,-26,-30,-26,-15,-15,-66,-69,-76,-72,-172,-137,-120,-118,-124,-111,-135,-100,-341,-304,-396,-380]} 1. e4 {[%emt 1:31:00]} c5 {[%emt 0:01:07]} 2. Nf3 {[%emt 0:00:00]} g6 {[%emt 0:00:05]} 3. d4 {[%emt 0:00:00]} cxd4 {[%emt 0:00:18]} 4. Qxd4 {[%emt 0:00:00]} Nf6 {[%emt 0:00:19]} 5. Nc3 {[%emt 0:00:00]} Nc6 {[%emt 0:00:21]} 6. Qd1 {[%emt 0:00:00] B27: Sicilian: 2 Nf3, unusual Black 2nd moves.} Bg7 {[%emt 0:04:09]} 7. Be2 {[%emt 0:00:00]} O-O {[%emt 0:01:40]} 8. O-O {[%emt 0:00:00] The position is equal.} d6 {[%emt 0:02:47]} 9. Bg5 {[%emt 0:00:00]} a6 {[%emt 0:07:20]} 10. a4 {[%emt 0:00:00] [#]} Bg4 $146 {[%emt 0:02:41]} ({Predecessor:} 10... b6 11. Qd2 Bb7 12. Rad1 Rc8 13. Bh6 Qc7 14. Bxg7 Kxg7 15. Nd5 Nxd5 16. exd5 Na5 {1-0 Sparenberg,E (2146)-Dittmar,L (1882) Vlissingen HZ op 23rd 2019 (6)}) 11. h3 {[%emt 0:00:00]} Bxf3 {[%emt 0:00:30]} 12. Bxf3 {[%emt 0:00:00]} Rc8 {[%emt 0:00:58]} 13. Be2 {[%emt 0:00:00]} Nd7 {[%emt 0:08:01][%cal Bf6d7,Bd7c5,Bc5a4,Ba4c3][%mdl 32]} 14. Qd2 {[%emt 0:00:00]} Nc5 {[%emt 0:02:06] ...Bxc3 would be deadly.} 15. Bh6 {[%emt 0:00:00]} Bxh6 {[%emt 0:04:25]} 16. Qxh6 {[%emt 0:00:00]} Qb6 {[%emt 0:05:28]} 17. Rab1 {[%emt 0:00:00]} Qb4 {[%emt 0:06:21]} 18. Bg4 {[%emt 0:00:00]} (18. Nd5 $11 Qxe4 19. Bf3) 18... e6 $15 {[%emt 0:02:05]} 19. Rfe1 {[%emt 0:00:00]} Nxa4 {[%emt 0:03:33]} 20. e5 {[%emt 0:00:00]} Nxc3 {[%emt 0:11:55]} (20... Nxe5 21. Ne4 f5 22. Ng5 $11) 21. bxc3 {[%emt 0:00:00]} Qxc3 {[%emt 0:00:14]} 22. exd6 {[%emt 0:00:00][%cal Oe1e6]} b5 {[%emt 0:03:15] And now ...Rfd8 would win.} (22... Qxc2 $6 23. d7 (23. Rxb7 Nd4 $11) 23... Rcd8 24. Rxb7 $11) 23. Rbd1 {[%emt 0:00:00]} ({Wrong is} 23. d7 $2 Rcd8 24. Qe3 (24. Red1 $2 Ne5 $19) 24... Qxe3 25. Rxe3 Rxd7 $19) 23... Rcd8 {[%emt 0:06:06][%cal Od8d6] aiming for ...Rxd6!} ({Much less strong is} 23... Qxc2 24. d7 Rcd8 25. Rc1 $18) 24. Bf3 $2 {[%emt 0:05:44] [#]} (24. Qe3 $17 Qxe3 25. Rxe3) 24... Rxd6 $3 $19 {[%emt 0:01:41][%mdl 576] Deflection} 25. Qf4 {[%emt 0:05:09]} (25. Qe3 Qxe3) 25... Rfd8 {[%emt 0:02:53] Weighted Error Value: White=0.40/Black=0.10 (very precise)} 0-1